fUSD/lending_fUSD_20250404
["ID","MTS","AMOUNT","RATE_DAILY","PERIOD"]
[357127809,1743772246718,-16401.4931537,0.00049929,4]
[357127811,1743772246727,-9410.88351302,0.00049929,4]
[357127814,1743772246738,-151.0,0.0004993,120]
[357127816,1743772246747,-997.6,0.00049934,120]
[357127818,1743772246757,-500.0,0.00049935,120]
[357127819,1743772246766,-781.0,0.00049936,7]
[357127822,1743772246776,-500.0,0.00049936,16]
[357127824,1743772246785,-503.36392698,0.00049936,120]
[357127825,1743772246794,-500.0,0.00049936,2]
[357127827,1743772246804,-500.0,0.00049936,3]
[357127829,1743772246813,-500.0,0.00049936,120]
[357127831,1743772246823,-290.61757042,0.00049936,120]
[357127833,1743772246833,-408.65446062,0.00049936,120]
[357127836,1743772246842,-505.29002041,0.00049936,120]
[357127839,1743772246851,-500.0,0.00049936,120]
[357127842,1743772246861,-512.93192205,0.00049936,120]
[357127845,1743772246871,-500.0,0.00049936,120]
[357127848,1743772246880,-500.0,0.00049936,120]
[357127850,1743772246889,-514.30354407,0.00049936,120]
[357127852,1743772246899,-500.0,0.00049936,120]
[357127854,1743772246909,-502.85547244,0.00049936,120]
[357127856,1743772246918,-500.0,0.00049936,120]
[357127859,1743772246929,-500.0,0.00049936,120]
[357127860,1743772246939,-499.66009385,0.00049936,30]
[357127863,1743772246949,-500.0,0.00049936,120]
[357127864,1743772246958,-500.0,0.00049936,120]
[357127867,1743772246968,-501.66559233,0.00049936,120]
[357127868,1743772246978,-549.25991038,0.00049936,120]
[357127870,1743772246987,-502.35477798,0.00049936,120]
[357127872,1743772246996,-503.7520162,0.00049936,120]
[357127874,1743772247006,-500.0,0.00049936,120]
[357127876,1743772247015,-500.0,0.00049936,120]
[357127878,1743772247025,-500.0,0.00049936,120]
[357127880,1743772247034,-500.0,0.00049936,120]
[357127882,1743772247044,-500.0,0.00049936,120]
[357127884,1743772247053,-500.0,0.00049936,120]
[357127886,1743772247063,-402.03025219,0.00049936,120]
[357127888,1743772247073,-500.0,0.00049936,120]
[357127890,1743772247083,-500.0,0.00049936,120]
[357127893,1743772247094,-500.0,0.00049936,120]
[357127895,1743772247103,-265.84214208,0.00049936,120]
[357127896,1743772247113,-500.0,0.00049936,2]
[357127899,1743772247122,-500.0,0.00049936,120]
[357127900,1743772247131,-500.0,0.00049936,120]
[357127902,1743772247141,-500.0,0.00049936,120]
[357127904,1743772247150,-500.0,0.00049936,120]
[357127906,1743772247159,-608.92276178,0.00049936,120]
[357127908,1743772247169,-500.0,0.00049936,120]
[357127910,1743772247179,-605.72823959,0.00049936,120]
[357127912,1743772247190,-500.0,0.00049936,120]
[357127914,1743772247199,-590.81442703,0.00049936,120]
[357127916,1743772247209,-9410.88351302,0.00049936,4]
[357127918,1743772247218,-9410.88351302,0.00049938,4]
[357127920,1743772247228,-151.0,0.00049939,120]
[357127922,1743772247238,-16401.4931537,0.00049939,4]
[357127924,1743772247248,-9410.88351302,0.00049939,4]
[357127926,1743772247258,-187.5,0.00049946,120]
[357127928,1743772247268,-347.29762261,0.00049946,120]
[357127931,1743772247278,-500.0,0.00049946,2]
[357127932,1743772247288,-151.0,0.00049948,120]
[357127934,1743772247297,-620.29051543,0.00049949,120]
[357127936,1743772247306,-185.9900548,0.00049953,2]
[357127938,1743772247315,-278.94095,0.00049953,2]
[357127940,1743772247325,-7941.6892568,0.00049955,2]
[357127942,1743772247335,-3819.9505842,0.00049955,2]
[357127944,1743772247344,-500.0,0.00049957,3]
[357127946,1743772247353,-500.0,0.00049957,3]
[357127948,1743772247368,-500.0,0.00049957,3]
[357127950,1743772247378,-500.0,0.00049957,3]
[357127952,1743772247389,-500.0,0.00049957,3]
[357127954,1743772247399,-253.0,0.00049957,120]
[357127956,1743772247408,-252.0,0.00049957,120]
[357127958,1743772247418,-1002.0,0.00049957,120]
[357127960,1743772247429,-9410.88351302,0.00049958,4]
[357127962,1743772247440,-49204.479461,0.00049959,4]
[357127964,1743772247449,-47054.4175651,0.00049959,4]
[357127966,1743772247458,-16401.4931537,0.00049963,4]
[357127968,1743772247467,-500.0,0.00049968,2]
[357127970,1743772247477,-500.0,0.00049968,120]
[357127972,1743772247486,-9410.88351302,0.00049968,4]
[357127974,1743772247495,-100063.25832311,0.00049969,120]
[357127976,1743772247506,-151.0,0.00049969,120]
[357127978,1743772247515,-405.86099782,0.00049969,30]
[357127980,1743772247524,-500.0,0.00049973,10]
[357127982,1743772247534,-239.76000224,0.00049978,30]
[357127984,1743772247543,-11089.75202565,0.00049978,30]
[357127986,1743772247552,-173.10313987,0.0004998,7]
[357127988,1743772247562,-500.0,0.00049989,120]
[357127990,1743772247572,-500.0,0.00049989,120]
[357127992,1743772247581,-500.0,0.00049989,120]
[357127994,1743772247590,-189.70874149,0.00049989,120]
[357127995,1743772247600,-500.0,0.00049989,2]
[357127997,1743772247610,-150.0,0.00049989,120]
[357127999,1743772247619,-8402.47443168,0.0004999,4]
[357128051,1743772248101,-2668.58164535,0.0004999,4]
[357128078,1743772248377,-625.47315776,0.0004999,4]
[357128108,1743772248661,-2944.84599578,0.0004999,4]
[357128111,1743772248689,-5598.71821488,0.0004999,4]
[357129172,1743772263182,463.45,0.00047192,2]
[357129173,1743772520429,93232.45161873,0.00035855,30]
[357129176,1743772919602,-250.0,0.00027,2]
[357129186,1743773134688,225.47906982,0.00016,2]
[357129187,1743773137089,1117.36782706,8e-05,2]
[357129188,1743773144853,287.70479209,0.00022,120]
[357129189,1743773176799,-250.0,0.00016,2]
[357129190,1743773247107,-1780.30026934,0.00016,2]
[357129191,1743773249088,158.57297582,0.0001,2]
[357129193,1743773325878,424.69407474,0.00022,120]
[357129197,1743773350110,-4414.718504,0.00016,2]
[357129198,1743773350139,-13348.8101354,0.00016,2]
[357129199,1743773350160,-1019.86074384,0.0002,2]
[357129200,1743773350180,-152.58269208,0.00022,3]
[357129201,1743773350200,-1029.79975405,0.00024,5]
[357129202,1743773350222,-151.19,0.00026849,2]
[357129203,1743773350243,-300.0,0.00029,2]
[357129204,1743773350262,-700.0,0.0003,2]
[357129205,1743773350282,-7000.0,0.0003,10]
[357129206,1743773350307,-23200.54785463,0.0003,5]
[357129210,1743773353097,-2216.8906006,0.0003,5]
[357129211,1743773353117,-800.0,0.00031,3]
[357129212,1743773353136,-840.0,0.00032,4]
[357129213,1743773353156,-151.19,0.00033328,2]
[357129214,1743773353176,-4198.99424099,0.00035,2]
[357129215,1743773353196,-171.29331036,0.0003558,2]
[357129216,1743773353217,-281.22,0.0003586,120]
[357129217,1743773353238,-171.87878086,0.000372,103]
[357129218,1743773353261,-171.87878084,0.000372,103]
[357129219,1743773353282,-151.19,0.00039807,2]
[357129220,1743773353304,-171.87878084,0.00041567,120]
[357129221,1743773353330,-151.19,0.00046285,2]
[357129228,1743773405629,2000.0,0.00047024,4]
[357129240,1743773431400,-3720.19473215,0.0003586,2]
[357129241,1743773431412,-1222.65758095,0.0003586,2]
[357129242,1743773431702,-4045.90799304,0.0003586,2]
[357129243,1743773431767,-951.45819651,0.0003586,2]
[357129244,1743773431829,-1920.36160627,0.0003586,2]
[357129245,1743773431842,-675.93652626,0.0003586,2]
[357129246,1743773431891,-254.65391088,0.0003586,2]
[357129247,1743773432010,-197.81114101,0.0003586,2]
[357129276,1743773437469,-473.9740458,0.0003586,2]
[357129282,1743773439758,-1305.03420325,0.0003586,2]
[357129283,1743773439770,-320.34599989,0.0003586,2]
[357129284,1743773439781,-71748.42537,0.0003586,2]
[357129285,1743773439792,-16289.37107574,0.0003586,2]
[357129286,1743773439801,-912.70804093,0.0003586,2]
[357129287,1743773439811,-462.78092388,0.0003586,2]
[357129288,1743773439820,-500.026824,0.000484,120]
[357129289,1743773439829,-1051.9963309,0.00048489,4]
[357129290,1743773439839,-150.0,0.00048515,2]
[357129291,1743773439848,-15025.52463742,0.000486,120]
[357129292,1743773439857,-934.78,0.00048608,2]
[357129293,1743773439866,-334.49,0.00048636,2]
[357129294,1743773439878,-1000.0,0.00048653,2]
[357129295,1743773439889,-163.47,0.00048664,120]
[357129296,1743773439898,-200.0,0.00048665,2]
[357129297,1743773439908,-155.5,0.00048689,2]
[357129298,1743773439918,-280.7,0.00048721,2]
[357129299,1743773439927,-179.89,0.0004879,30]
[357129300,1743773439937,-899.48,0.0004879,30]
[357129301,1743773439946,-677.4011323,0.000488,2]
[357129334,1743773550429,486.21,0.00046739,2]
[357129336,1743774337131,-500.0,0.00042189,2]
[357129337,1743774337152,-500.0,0.00042189,2]
[357129338,1743774337172,-500.0,0.00042189,2]
[357129339,1743774337193,-547.67038301,0.00042189,2]
[357129340,1743774337213,-184.9152568,0.000433,2]
[357129341,1743774337235,-163.65765111,0.000434,120]
[357129342,1743774337260,-154.69,0.000436,36]
[357129343,1743774337280,-300.0,0.00046599,5]
[357129344,1743774337300,-1819.16812946,0.000466,2]
[357129345,1743774337321,-500.0,0.00046998,120]
[357129346,1743774337342,-150.0,0.00047264,2]
[357129347,1743774337369,-154.69,0.000474,42]
[357129348,1743774337394,-154.69,0.000474,42]
[357129349,1743774337414,-1000.0,0.00047488,2]
[357129350,1743774337435,-150.05,0.00047506,2]
[357129351,1743774337457,-435.89,0.00047513,2]
[357129352,1743774337481,-199.13,0.0004753,120]
[357129353,1743774337501,-163.23,0.00047536,120]
[357129354,1743774337521,-20.52761693,0.00047615,2]
[357129355,1743774450090,-249.81174537,0.00047377,6]
[357129356,1743774450113,-150.0,0.00047539,7]
[357129357,1743774450136,-24.81233619,0.000476,2]
[357129360,1743774546121,-250.0,0.00027,2]
[357129361,1743774546144,-300.0,0.00029,2]
[357129362,1743774546169,-350.0,0.00031,2]
[357129363,1743774560105,-150.09173941,0.00046976,120]
[357129364,1743774560129,-300.0,0.00047429,5]
[357129365,1743774560151,-14589.05109867,0.0004743,2]
[357129366,1743774576117,500.0,0.000472,120]
[357129367,1743774581907,509.0,0.00045565,2]
[357129372,1743774631830,-9310.94890133,0.0004743,2]
[357129373,1743774631847,-125.18766381,0.000476,2]
[357129374,1743774631856,-260.17238307,0.00047615,2]
[357129375,1743774631866,-253.56,0.00047752,30]
[357129376,1743774631877,-509.0,0.00047829,2]
[357129377,1743774631886,-444.76,0.00047841,30]
[357129378,1743774631900,-784.07,0.00047841,30]
[357129379,1743774631909,-150.0,0.00047878,30]
[357129380,1743774631919,-153.37,0.00047881,2]
[357129381,1743774631930,-163.6576511,0.000479,120]
[357129382,1743774631940,-444.76,0.000479,30]
[357129383,1743774631950,-784.07,0.000479,30]
[357129384,1743774631961,-444.76,0.000479,30]
[357129385,1743774631971,-784.07,0.000479,30]
[357129386,1743774631982,-784.07,0.000479,30]
[357129387,1743774631991,-444.76,0.000479,30]
[357129389,1743774632001,-347.57,0.000479,30]
[357129391,1743774632010,-150.0,0.000479,30]
[357129393,1743774632020,-150.0,0.000479,30]
[357129394,1743774632029,-784.07,0.000479,30]
[357129397,1743774632038,-444.76,0.000479,30]
[357129399,1743774632048,-347.57,0.000479,30]
[357129401,1743774632058,-154.74,0.00047919,2]
[357129402,1743774632067,-432.5,0.00047976,2]
[357129404,1743774632078,-250.0,0.00047978,120]
[357129407,1743774632091,-224.75,0.00047978,30]
[357129408,1743774632101,-196.82,0.00047978,30]
[357129410,1743774632112,-154.72,0.00047978,30]
[357129412,1743774632122,-351.93,0.00047978,30]
[357129414,1743774632131,-906.48,0.00047978,30]
[357129416,1743774632141,-347.57,0.00047978,30]
[357129418,1743774632151,-347.57,0.00047978,30]
[357129420,1743774632160,-347.57,0.00047978,30]
[357129422,1743774632170,-2863.0,0.00048,120]
[357129424,1743774632179,-150.0,0.00048,120]
[357129428,1743774632191,-500.0,0.00048219,120]
[357129431,1743774632201,-500.0,0.00048219,120]
[357129434,1743774632210,-500.0,0.00048219,120]
[357129437,1743774632220,-500.0,0.00048219,120]
[357129440,1743774632229,-500.0,0.00048219,120]
[357129443,1743774632239,-183.29539713,0.00048219,120]
[357129445,1743774632249,-500.0,0.00048219,120]
[357129448,1743774632259,-500.0,0.00048219,120]
[357129452,1743774632269,-500.0,0.00048219,120]
[357129455,1743774632280,-3792.99,0.0004822,30]
[357129458,1743774632291,-150.99,0.0004822,2]
[357129461,1743774632301,-645.28,0.0004822,2]
[357129464,1743774632311,-331.64,0.0004822,2]
[357129467,1743774632320,-3295.72,0.0004822,2]
[357129469,1743774632330,-159.56,0.0004822,2]
[357129472,1743774632341,-9999.99,0.0004822,2]
[357129475,1743774632350,-150.99,0.0004822,30]
[357129478,1743774632360,-367.06728274,0.00048245,9]
[357129481,1743774632369,-436.582,0.00048245,83]
[357129484,1743774632379,-29962.36,0.00048246,2]
[357129487,1743774632389,-158.58,0.000483,30]
[357129490,1743774632398,-400.92,0.000483,30]
[357129493,1743774632407,-2104.40305617,0.0004832,2]
[357129496,1743774632417,-3052.43227994,0.0004832,2]
[357129498,1743774632426,-784.07,0.000484,30]
[357129500,1743774632436,-250.0,0.00048405,2]
[357129502,1743774632446,-788.9972482,0.00048489,4]
[357129504,1743774632455,-38115.0,0.000486,120]
[357129506,1743774632465,-1641.49,0.00048678,2]
[357129508,1743774632474,-929.46,0.000487,30]
[357129510,1743774632483,-785.06,0.000487,30]
[357129512,1743774632493,-444.76,0.000487,30]
[357129514,1743774632502,-347.57,0.000487,30]
[357129516,1743774632511,-784.07,0.000487,30]
[357129518,1743774632520,-444.76,0.000487,30]
[357129520,1743774632529,-347.57,0.000487,30]
[357129522,1743774632539,-784.07,0.000487,30]
[357129524,1743774632548,-444.76,0.000487,30]
[357129526,1743774632558,-347.57,0.000487,30]
[357129528,1743774632568,-444.76,0.000487,30]
[357129530,1743774632577,-784.07,0.000487,30]
[357129532,1743774632595,-347.57,0.000487,30]
[357129535,1743774632606,-444.76,0.000487,30]
[357129537,1743774632616,-784.07,0.000487,30]
[357129539,1743774632625,-784.07,0.000487,30]
[357129541,1743774632636,-444.76,0.000487,30]
[357129543,1743774632645,-444.76,0.000487,30]
[357129545,1743774632655,-784.07,0.000487,30]
[357129547,1743774632664,-444.76,0.000487,30]
[357129549,1743774632674,-784.07,0.000487,30]
[357129551,1743774632684,-784.07,0.000487,30]
[357129553,1743774632694,-444.76,0.000487,30]
[357129555,1743774632703,-444.76,0.000487,30]
[357129557,1743774632713,-784.07,0.000487,30]
[357129559,1743774632723,-190.8924,0.000487,2]
[357129561,1743774632733,-196.053,0.000487,2]
[357129563,1743774632742,-191.6396,0.000487,2]
[357129565,1743774632752,-184.12846006,0.000488,14]
[357129567,1743774632761,-150.0,0.000488,30]
[357129568,1743774632771,-150.0,0.000488,30]
[357129569,1743774632780,-150.0,0.000488,30]
[357129570,1743774632789,-150.0,0.000488,30]
[357129571,1743774632799,-50000.0,0.000488,120]
[357129572,1743774632808,-501.58752862,0.0004889,77]
[357129573,1743774632818,-170.4947342,0.000489,28]
[357129574,1743774632827,-1352.76239448,0.00048902,21]
[357129575,1743774632839,-178.79,0.00048965,2]
[357129576,1743774632848,-126767.236595,0.0004899,4]
[357129577,1743774632858,-150.39,0.0004899,120]
[357129578,1743774632867,-155.84710641,0.00049,120]
[357129579,1743774632877,-362.75464748,0.00049,120]
[357129580,1743774632886,-250.0,0.00049,120]
[357129581,1743774632895,-380000.0,0.00049,60]
[357129582,1743774632905,-197.47951,0.00049,14]
[357129583,1743774632914,-3411.11379478,0.00049215,15]
[357129584,1743774632926,-1436.0842,0.00049215,2]
[357129585,1743774632935,-1300.5054,0.00049215,2]
[357129586,1743774632945,-227.8574,0.00049215,120]
[357129587,1743774632954,-18109.6052278,0.00049294,4]
[357129588,1743774632963,-150.39,0.00049295,120]
[357129589,1743774632972,-1003.0,0.000493,9]
[357129590,1743774632982,-126767.236595,0.00049305,4]
[357129591,1743774632992,-3413.4715488,0.00049305,4]
[357129592,1743774633001,-150.39,0.00049305,120]
[357129593,1743774633011,-150.39,0.00049305,120]
[357129594,1743774633020,-500.0,0.00049315,60]
[357129595,1743774633030,-500.0,0.00049315,120]
[357129596,1743774633040,-500.0,0.00049315,120]
[357129597,1743774633049,-500.0,0.00049315,120]
[357129598,1743774633059,-500.0,0.00049315,120]
[357129599,1743774633069,-500.0,0.00049315,120]
[357129600,1743774633078,-500.0,0.00049315,120]
[357129601,1743774633089,-500.0,0.00049315,120]
[357129602,1743774633099,-500.0,0.00049315,120]
[357129603,1743774633113,-500.0,0.00049315,120]
[357129604,1743774633123,-500.0,0.00049315,120]
[357129605,1743774633133,-500.0,0.00049315,120]
[357129606,1743774633143,-821.07,0.00049315,120]
[357129607,1743774633152,-500.0,0.00049315,120]
[357129608,1743774633163,-500.0,0.00049315,120]
[357129609,1743774633172,-602.1374992,0.00049315,120]
[357129610,1743774633184,-500.0,0.00049315,120]
[357129611,1743774633193,-351.25723245,0.00049315,120]
[357129612,1743774633204,-500.0,0.00049315,120]
[357129613,1743774633214,-500.0,0.00049315,120]
[357129614,1743774633224,-500.0,0.00049315,120]
[357129615,1743774633234,-511.08,0.00049315,120]
[357129616,1743774633244,-565.65311672,0.00049315,120]
[357129617,1743774633254,-500.0,0.00049315,120]
[357129618,1743774633267,-1955.35,0.00049315,10]
[357129619,1743774633278,-506.06,0.00049315,120]
[357129620,1743774633288,-500.0,0.00049315,7]
[357129621,1743774633298,-249.73947955,0.00049315,120]
[357129622,1743774633309,-500.0,0.00049315,30]
[357129623,1743774633318,-196.32146167,0.00049315,120]
[357129624,1743774633328,-521.46341467,0.00049315,120]
[357129625,1743774633339,-533.25852027,0.00049315,120]
[357129626,1743774633349,-2000.0,0.00049315,2]
[357129627,1743774633358,-500.0,0.00049315,120]
[357129628,1743774633368,-531.14250942,0.00049315,120]
[357129629,1743774633377,-500.0,0.00049315,120]
[357129630,1743774633387,-500.0,0.00049315,120]
[357129631,1743774633397,-500.0,0.00049315,120]
[357129632,1743774633407,-500.0,0.00049315,120]
[357129633,1743774633416,-500.0,0.00049315,120]
[357129634,1743774633427,-522.0496691,0.00049315,120]
[357129635,1743774633436,-500.0,0.00049315,120]
[357129636,1743774633446,-258.43567218,0.00049315,120]
[357129637,1743774633455,-635.62044087,0.00049315,120]
[357129638,1743774633464,-500.0,0.00049315,120]
[357129639,1743774633474,-3227.24,0.00049315,2]
[357129640,1743774633484,-500.0,0.00049315,120]
[357129641,1743774633493,-997.8,0.00049315,120]
[357129642,1743774633503,-500.0,0.00049315,120]
[357129643,1743774633512,-500.0,0.00049315,7]
[357129644,1743774633522,-500.0,0.00049315,120]
[357129645,1743774633532,-610.17,0.00049315,120]
[357129646,1743774633542,-500.0,0.00049315,120]
[357129647,1743774633551,-500.0,0.00049315,120]
[357129648,1743774633560,-526.78559181,0.00049315,120]
[357129649,1743774633570,-504.08,0.00049315,120]
[357129650,1743774633579,-458.0741256,0.00049315,120]
[357129651,1743774633590,-500.0,0.00049315,120]
[357129652,1743774633600,-519.08619782,0.00049315,120]
[357129653,1743774633610,-500.0,0.00049315,120]
[357129654,1743774633619,-500.0,0.00049315,120]
[357129655,1743774633628,-500.0,0.00049315,60]
[357129656,1743774633638,-516.02,0.00049315,120]
[357129657,1743774633648,-500.0,0.00049315,120]
[357129658,1743774633657,-500.0,0.00049315,120]
[357129659,1743774633667,-663.38,0.00049315,120]
[357129660,1743774633677,-500.0,0.00049315,120]
[357129661,1743774633687,-500.0,0.00049315,120]
[357129662,1743774633696,-500.0,0.00049315,120]
[357129663,1743774633706,-942.71,0.00049315,120]
[357129664,1743774633716,-500.0,0.00049315,120]
[357129665,1743774633725,-368.63702448,0.00049315,120]
[357129666,1743774633735,-500.0,0.00049315,120]
[357129667,1743774633744,-508.56776472,0.00049315,120]
[357129668,1743774633754,-600.43697694,0.00049315,120]
[357129669,1743774633764,-500.0,0.00049315,120]
[357129670,1743774633773,-290.96168493,0.00049315,120]
[357129671,1743774633783,-582.76209756,0.00049315,120]
[357129672,1743774633793,-500.0,0.00049315,120]
[357129673,1743774633803,-601.82648321,0.00049315,120]
[357129674,1743774633964,-500.0,0.00049315,120]
[357129675,1743774633975,-500.0,0.00049315,120]
[357129676,1743774633985,-518.09810228,0.00049315,120]
[357129677,1743774633994,-500.0,0.00049315,120]
[357129678,1743774634004,-500.0,0.00049315,120]
[357129679,1743774634015,-571.005513,0.00049315,120]
[357129680,1743774634024,-500.0,0.00049315,30]
[357129681,1743774634034,-521.52185982,0.00049315,120]
[357129682,1743774634043,-500.0,0.00049315,120]
[357129683,1743774634053,-500.0,0.00049315,120]
[357129684,1743774634063,-535.87,0.00049315,120]
[357129685,1743774634073,-500.0,0.00049315,120]
[357129686,1743774634083,-500.0,0.00049315,120]
[357129687,1743774634099,-500.0,0.00049315,120]
[357129688,1743774634109,-605.04320024,0.00049315,120]
[357129689,1743774634119,-500.0,0.00049315,120]
[357129690,1743774634130,-452.81505,0.00049315,120]
[357129691,1743774634142,-500.0,0.00049315,120]
[357129692,1743774634152,-500.0,0.00049315,120]
[357129693,1743774634161,-500.0,0.00049315,120]
[357129694,1743774634171,-471.685764,0.00049315,120]
[357129695,1743774634181,-500.0,0.00049315,120]
[357129696,1743774634191,-500.0,0.00049315,120]
[357129697,1743774634201,-500.0,0.00049315,120]
[357129698,1743774634211,-829.25,0.00049315,120]
[357129699,1743774634221,-3121.780091,0.00049315,120]
[357129700,1743774634231,-500.0,0.00049315,120]
[357129701,1743774634240,-500.0,0.00049315,120]
[357129702,1743774634250,-500.0,0.00049315,120]
[357129703,1743774634259,-500.0,0.00049315,120]
[357129704,1743774634268,-500.0,0.00049315,120]
[357129705,1743774634278,-500.0,0.00049315,120]
[357129706,1743774634287,-516.99538167,0.00049315,120]
[357129707,1743774634297,-545.36222108,0.00049315,120]
[357129708,1743774634306,-500.0,0.00049315,120]
[357129709,1743774634316,-500.0,0.00049315,120]
[357129710,1743774634326,-500.0,0.00049315,120]
[357129711,1743774634335,-500.0,0.00049315,120]
[357129712,1743774634348,-500.0,0.00049315,120]
[357129713,1743774634358,-500.0,0.00049315,120]
[357129714,1743774634367,-500.0,0.00049315,120]
[357129715,1743774634377,-529.7789604,0.00049315,120]
[357129716,1743774634387,-519.89289266,0.00049315,120]
[357129717,1743774634397,-500.0,0.00049315,120]
[357129718,1743774634408,-500.0,0.00049315,120]
[357129719,1743774634418,-500.0,0.00049315,120]
[357129720,1743774634428,-528.90669774,0.00049315,120]
[357129721,1743774634438,-500.0,0.00049315,120]
[357129722,1743774634448,-511.65183925,0.00049315,120]
[357129723,1743774634458,-500.0,0.00049315,120]
[357129724,1743774634468,-561.79502722,0.00049315,120]
[357129725,1743774634477,-500.0,0.00049315,120]
[357129726,1743774634486,-517.61451995,0.00049315,120]
[357129727,1743774634496,-500.0,0.00049315,120]
[357129728,1743774634506,-500.0,0.00049315,120]
[357129729,1743774634515,-500.0,0.00049315,10]
[357129730,1743774634524,-500.0,0.00049315,120]
[357129731,1743774634533,-500.0,0.00049315,120]
[357129732,1743774634543,-500.0,0.00049315,120]
[357129733,1743774634552,-526.43904713,0.00049315,120]
[357129734,1743774634561,-500.0,0.00049315,120]
[357129735,1743774634570,-500.0,0.00049315,120]
[357129736,1743774634583,-500.0,0.00049315,120]
[357129737,1743774634596,-500.0,0.00049315,120]
[357129738,1743774634606,-1094.74816203,0.00049315,28]
[357129739,1743774634615,-500.0,0.00049315,120]
[357129740,1743774634624,-837.06,0.00049315,120]
[357129741,1743774634634,-500.0,0.00049315,30]
[357129742,1743774634643,-861.68,0.00049315,120]
[357129743,1743774634653,-251.59223671,0.00049315,120]
[357129744,1743774634663,-500.0,0.00049315,120]
[357129745,1743774634672,-500.0,0.00049315,12]
[357129746,1743774634682,-500.0,0.00049315,120]
[357129747,1743774634692,-525.12470726,0.00049315,120]
[357129748,1743774634702,-500.0,0.00049315,120]
[357129749,1743774634712,-500.0,0.00049315,120]
[357129750,1743774634722,-500.0,0.00049315,120]
[357129751,1743774634731,-578.7360097,0.00049315,120]
[357129752,1743774634742,-500.0,0.00049315,120]
[357129753,1743774634751,-500.0,0.00049315,120]
[357129754,1743774634761,-379.76774286,0.00049315,120]
[357129755,1743774634770,-500.0,0.00049315,120]
[357129756,1743774634779,-500.0,0.00049315,120]
[357129757,1743774634789,-526.62750812,0.00049315,120]
[357129758,1743774634798,-426.222832,0.00049315,120]
[357129759,1743774634808,-500.0,0.00049315,120]
[357129760,1743774634816,-500.0,0.00049315,120]
[357129761,1743774634826,-500.0,0.00049315,120]
[357129762,1743774634835,-500.0,0.00049315,120]
[357129763,1743774634846,-500.0,0.00049315,120]
[357129764,1743774634856,-520.96094744,0.00049315,120]
[357129765,1743774634865,-500.0,0.00049315,120]
[357129766,1743774634874,-500.0,0.00049315,120]
[357129767,1743774634883,-2762.29,0.00049315,120]
[357129768,1743774634893,-500.0,0.00049315,100]
[357129769,1743774634902,-500.0,0.00049315,120]
[357129770,1743774634911,-500.0,0.00049315,120]
[357129771,1743774634921,-515.38905347,0.00049315,120]
[357129772,1743774634931,-500.0,0.00049315,120]
[357129773,1743774634940,-500.0,0.00049315,120]
[357129774,1743774634949,-500.0,0.00049315,120]
[357129775,1743774634958,-568.59,0.00049315,120]
[357129776,1743774634967,-839.0,0.00049315,120]
[357129777,1743774634976,-500.0,0.00049315,120]
[357129778,1743774634986,-500.0,0.00049315,120]
[357129779,1743774634995,-579.13165261,0.00049315,120]
[357129780,1743774635004,-746.77,0.00049315,120]
[357129781,1743774635014,-3050.46061701,0.00049315,10]
[357129782,1743774635023,-500.0,0.00049315,120]